Workbook

Sheet Sheet1 (hidden)
A1: 公司 | B1: 序号 | C1: 厂区名称 | E1: 设计规模 （万吨） | F1: 地址 | G1: 污泥处置合同期限 | H1: 备注
A2: 东莞市水务投资集团有限公司 | B2: 1 | C2: 东莞市市区污水处理厂（一二期、三期） | E2: 40 | F2: 东莞市南城区石鼓村王洲 | G2: 2020年1月31日止 （金茂）
B3: 2 | C3: 东莞市樟村水质净化厂 | E3: 260 | G3: 2019年12月31日止 （永安）
B4: 3 | C4: 东莞市石碣沙腰污水处理厂扩建工程 | E4: 10 | F4: 东莞市石碣镇沙腰村沿江西路2号 | G4: 2020年2月26日止 （金茂）
B5: 4 | C5: 东莞市松山湖北部污水处理厂二期 | E5: 5 | F5: 东莞松山湖高新技术产业开发区工业西三路东莞市松山湖北部污水处理厂二期 | G5: 2020年1月31日止 （金茂）
B6: 5 | C6: 东莞市凤岗虾公潭污水处理厂 | E6: 2 | F6: 东莞市凤岗镇油甘埔村 | G6: 2020年6月30日止 （金茂）
B7: 6 | C7: 东莞市桥头污水处理厂二期 | E7: 4 | F7: 东莞市桥头镇东深路（朗厦段）B区8号 | G7: 2019年12月20日止 （金茂） | H7: 正在与金茂签订新协议，2020年4月30日止
B8: 7 | C8: 东莞市谢岗污水处理厂二期 | E8: 3 | F8: 东莞市谢岗镇谢岗村乌舅湖 | G8: 2020年2月9日止 （金茂）
B9: 8 | C9: 东莞市长安新区污水处理厂 | E9: 20 | F9: 东莞市长安镇乌沙社区兴发南路长安新区污水处理厂 | G9: 2020年6月1日止 （金茂）
B10: 9 | C10: 东莞市凤岗竹塘污水处理厂二期 | E10: 5 | F10: 东莞市凤岗镇竹塘村浸校塘组 | G10: 2020年6月18日止 （金茂）
B11: 10 | C11: 东莞市塘厦林村污水处理厂二期 | E11: 4 | F11: 东莞市塘厦镇林村居委会鸡爪桥猪仔沥 | G11: 2020年6月18日止 （金茂）
B12: 11 | C12: 东莞市厚街沙塘污水处理厂二期 | E12: 10 | F12: 东莞市厚街镇沙塘村沙隆路污水处理厂二期 | G12: 2020年12月28日止 （金茂）
B13: 12 | C13: 东莞市万江污水处理厂二期 | E13: 5 | F13: 东莞市万江区流涌尾社区白水涡 | G13: 2020年9月29日止 （金茂）
B14: 13 | C14: 东莞市虎门港立沙岛污水处理厂 | E14: 0.25 | F14: 东莞市沙田镇大流村下涌 | G14: /
B15: 14 | C15: 东莞市黄江污水处理厂二期 | E15: 6 | F15: 东莞市黄江镇合路村创业一路黄江污水处理厂二期 | G15: 2019年10月31日止 （金茂） | H15: 正在与金茂签订新协议，2020年5月20日止
B16: 15 | C16: 东莞市东城温塘污水处理厂 | E16: 5 | F16: 东莞市东城温塘社区东南角东城温塘污水处理厂 | G16: 2020年2月18日止 （金茂）
B17: 16 | C17: 东莞市虎门宁州污水处理厂二期 | E17: 10 | F17: 东莞市虎门镇路东村虎门宁州污水处理厂二期 | G17: 2020年5月31日止 （金茂）
B18: 17 | C18: 樟木头污水处理厂三期 | E18: 4 | F18: 东莞市樟木头镇柏地村樟木头污水处理厂三期 | G18: /
B19: 18 | C19: 中堂污水处理厂二期 | E19: 5 | F19: 广东省东莞市中堂镇中堂滨河东路68号之一101室 | G19: /
B20: 19 | C20: 寮步竹园污水处理厂二期 | E20: 5 | G20: /
B21: 20 | C21: 麻涌污水处理厂二期 | E21: 3 | F21: 广东省东莞市麻涌镇新沙公园南一路9号2号楼202室 | G21: /
B22: 21 | C22: 大朗松山湖南部合建污水处理厂二期 | E22: 10 | F22: 广东省东莞市大朗镇杨沙路153号十三栋101室 | G22: /
B23: 22 | C23: 东城牛山污水处理厂二期 | E23: 3 | F23: 广东省东莞市东城街道象山路7号2栋101室 | G23: /
B24: 23 | C24: 樟木头裕丰污水处理厂 | E24: 1 | G24: /
B25: 24 | C25: 望洪污水处理厂提标项目 | E25: 4 | G25: /
B26: 25 | C26: 凤岗雁田污水处理厂提标项目 | E26: 5 | G26: /

Sheet 污泥合同汇总情况表
A1: 水投公司旗下市政污水处理厂预计产泥量汇总表
A2: 序号 | C2: 厂区名称 | E2: 设计规模 （万吨） | F2: 每天最大脱泥量 | G2: 2月 | H2: 3月 | I2: 4月 | J2: 5月 | K2: 6月 | L2: 7月 | M2: 8月 | N2: 9月 | O2: 10月 | P2: 11月 | Q2: 12月 | R2: 合计 | S2: 地址
A3: 1 | B3: 市区厂污泥干化项目设计200吨，实际300吨。(预计4月1日投产） | C3: 东莞市市区污水处理厂（一二期、三期）含提标项目 | E3: 40 | F3: 160 | G3: =160*28 -> 4480 | H3: =160*28 -> 4480 | I3: =E3*1*30/0.2 -> 6000 | J3: =E3*1*31/0.2 -> 6200 | K3: =E3*1*30/0.2 -> 6000 | L3: =E3*1*31/0.2 -> 6200 | M3: =E3*1*31/0.2 -> 6200 | N3: =E3*1*30/0.2 -> 6000 | O3: =E3*1*31/0.2 -> 6200 | P3: =E3*1*30/0.2 -> 6000 | Q3: =E3*1*31/0.2 -> 6200 | R3: =SUM(G3:Q3) -> 63960 | S3: 东莞市南城区石鼓村王洲
A4: 2 | B4: 塘厦林村污泥干化项目设计200吨，实际250吨。（预计7月1日投产） | C4: 东莞市松山湖北部污水处理厂二期 | E4: 5 | F4: 30 | G4: —— | H4: —— | I4: =E4*0.5*30/0.2 -> 375 | J4: =E4*0.7*31/0.2 -> 542.5 | K4: =E4*0.7*30/0.2 -> 525 | L4: =E4*0.8*31/0.2 -> 620 | M4: =E4*0.8*31/0.2 -> 620 | N4: =E4*1*30/0.2 -> 750 | O4: =E4*1*31/0.2 -> 775 | P4: =E4*1*30/0.2 -> 750 | Q4: =E4*1*31/0.2 -> 775 | R4: =SUM(G4:Q4) -> 5732.5 | S4: 东莞松山湖高新技术产业开发区工业西三路东莞市松山湖北部污水处理厂二期
A5: 3 | C5: 东莞市谢岗污水处理厂二期 | E5: 3 | F5: 25 | G5: =E5*0.2/0.2*28 -> 84 | H5: =E5*0.5*31/0.2 -> 232.5 | I5: =E5*0.5*30/0.2 -> 225 | J5: =E5*0.7*31/0.2 -> 325.5 | K5: =E5*0.8*30/0.2 -> 360 | L5: =E5*1*31/0.2 -> 465 | M5: =E5*1*31/0.2 -> 465 | N5: =E5*1*30/0.2 -> 450 | O5: =E5*1*31/0.2 -> 465 | P5: =E5*1*30/0.2 -> 450 | Q5: =E5*1*31/0.2 -> 465 | R5: 3987 | S5: 东莞市谢岗镇谢岗村乌舅湖
A6: 4 | C6: 东莞市桥头污水处理厂二期 | E6: 4 | F6: 60 | G6: =F6*28*0.8 -> 1344 | H6: =E6*1*31/0.2 -> 620 | I6: =E6*1*30/0.2 -> 600 | J6: =E6*1*31/0.2 -> 620 | K6: =E6*1*30/0.2 -> 600 | L6: =E6*1*31/0.2 -> 620 | M6: =E6*1*31/0.2 -> 620 | N6: =E6*1*30/0.2 -> 600 | O6: =E6*1*31/0.2 -> 620 | P6: =E6*1*30/0.2 -> 600 | Q6: =E6*1*31/0.2 -> 620 | R6: 7464
A7: 5 | C7: 东莞市黄江污水处理厂二期 | E7: 6 | F7: 75 | G7: =75*28*0.8 -> 1680 | H7: =E7*1*31/0.2 -> 930 | I7: =E7*1*30/0.2 -> 900 | J7: =E7*1*31/0.2 -> 930 | K7: =E7*1*30/0.2 -> 900 | L7: =E7*1*31/0.2 -> 930 | M7: =E7*1*31/0.2 -> 930 | N7: =E7*1*30/0.2 -> 900 | O7: =E7*1*31/0.2 -> 930 | P7: =E7*1*30/0.2 -> 900 | Q7: =E7*1*31/0.2 -> 930 | R7: 10860
A8: 6 | C8: 东莞市凤岗竹塘污水处理厂二期 | E8: 5 | F8: 75（60%35，80%40） | G8: =75*28*0.8 -> 1680 | H8: =E8*1.5*31/0.2 -> 1162.5 | I8: =E8*1.5*30/0.2 -> 1125 | J8: =E8*1.5*31/0.2 -> 1162.5 | K8: =E8*1.5*30/0.2 -> 1125 | L8: =E8*1.5*31/0.2 -> 1162.5 | M8: =E8*1.5*31/0.2 -> 1162.5 | N8: =E8*1.5*30/0.2 -> 1125 | O8: =E8*1.5*31/0.2 -> 1162.5 | P8: =E8*1.5*30/0.2 -> 1125 | Q8: =E8*1.5*31/0.2 -> 1162.5 | R8: 13155 | S8: 东莞市凤岗镇竹塘村浸校塘组
A9: 7 | C9: 东莞市塘厦林村污水处理厂二期 | E9: 4 | F9: 18（60%） | G9: =18*28 -> 504 | H9: =18*28 -> 504 | I9: 504 | J9: 504 | K9: 504 | L9: 504 | M9: 504 | N9: 504 | O9: 504 | P9: 504 | Q9: 504 | R9: 5544 | S9: 东莞市塘厦镇林村居委会鸡爪桥猪仔沥
A10: 8 | C10: 东莞市凤岗虾公潭污水处理厂（含提标项目） | E10: 2 | F10: 19 | G10: =19*28 -> 532 | H10: =E10*1.3*31/0.2 -> 403 | I10: =E10*1.3*30/0.2 -> 390 | J10: =E10*1.3*31/0.2 -> 403 | K10: =E10*1.3*30/0.2 -> 390 | L10: =E10*1.3*31/0.2 -> 403 | M10: =E10*1.3*31/0.2 -> 403 | N10: =E10*1.3*30/0.2 -> 390 | O10: =E10*1.3*31/0.2 -> 403 | P10: =E10*1.3*30/0.2 -> 390 | Q10: =E10*1.3*31/0.2 -> 403 | R10: 4510 | S10: 东莞市凤岗镇油甘埔村
A11: 9 | C11: 樟木头污水处理厂三期 | E11: 4 | G11: __ | H11: __ | I11: __ | J11: =E11*0.3*31/0.2 -> 186 | K11: =E11*0.5*30/0.2 -> 300 | L11: =E11*0.7*31/0.2 -> 434 | M11: =E11*0.7*31/0.2 -> 434 | N11: =E11*0.7*30/0.2 -> 420 | O11: =E11*0.7*31/0.2 -> 434 | P11: =E11*0.7*30/0.2 -> 420 | Q11: =E11*0.7*31/0.2 -> 434 | R11: 3062 | S11: 东莞市樟木头镇柏地村樟木头污水处理厂三期
A12: 10 | C12: 大朗松山湖南部合建污水处理厂二期 | E12: 10 | G12: __ | H12: __ | I12: =E12*0.5*30/0.2 -> 750 | J12: =E12*0.7*31/0.2 -> 1085 | K12: =E12*0.8*30/0.2 -> 1200 | L12: =E12*0.8*31/0.2 -> 1240 | M12: =E12*1*31/0.2 -> 1550 | N12: =E12*1*30/0.2 -> 1500 | O12: =E12*1*31/0.2 -> 1550 | P12: =E12*1*30/0.2 -> 1500 | Q12: =E12*1*31/0.2 -> 1550 | R12: 11925 | S12: 广东省东莞市大朗镇杨沙路153号十三栋101室
A13: 11 | C13: 凤岗雁田污水处理厂提标项目 | E13: 5 | G13: —— | H13: —— | I13: —— | J13: —— | K13: —— | L13: 60 | M13: 60 | N13: 60 | O13: 60 | P13: 60 | Q13: 60 | R13: 360
A14: 12 | B14: 厚街污泥干化项目200吨，实际260吨。（预计10月1日投产） | C14: 东莞市厚街沙塘污水处理厂二期 | E14: 10 | F14: 80 | G14: =F14*28*0.8 -> 1792 | H14: =E14*0.7*31/0.2 -> 1085 | I14: =E14*0.7*30/0.2 -> 1050 | J14: =E14*0.7*31/0.2 -> 1085 | K14: =E14*0.7*30/0.2 -> 1050 | L14: =E14*0.7*31/0.2 -> 1085 | M14: =E14*0.7*31/0.2 -> 1085 | N14: =E14*0.7*30/0.2 -> 1050 | O14: =E14*0.7*31/0.2 -> 1085 | P14: =E14*0.8*30/0.2 -> 1200 | Q14: =E14*0.8*31/0.2 -> 1240 | R14: 12807 | S14: 东莞市厚街镇沙塘村沙隆路污水处理厂二期
A15: 13 | C15: 东莞市虎门宁州污水处理厂二期 | E15: 10 | F15: 80 | G15: =F15*28*0.8 -> 1792 | H15: =E15*0.8*31/0.2 -> 1240 | I15: =E15*0.7*30/0.2 -> 1050 | J15: =E15*0.8*31/0.2 -> 1240 | K15: =E15*0.8*30/0.2 -> 1200 | L15: =E15*0.8*31/0.2 -> 1240 | M15: =E15*0.9*31/0.2 -> 1395 | N15: =E15*0.9*30/0.2 -> 1350 | O15: =E15*0.9*31/0.2 -> 1395 | P15: =E15*0.9*30/0.2 -> 1350 | Q15: =E15*0.9*31/0.2 -> 1395 | R15: 14647 | S15: 东莞市虎门镇路东村虎门宁州污水处理厂二期
A16: 14 | C16: 东莞市长安新区污水处理厂 | E16: 20 | F16: 160 | G16: =F16*28*0.7 -> 3136 | H16: =E16*1*31/0.2 -> 3100 | I16: =E16*1*30/0.2 -> 3000 | J16: =E16*1*31/0.2 -> 3100 | K16: =E16*1*30/0.2 -> 3000 | L16: =E16*1*31/0.2 -> 3100 | M16: =E16*1*31/0.2 -> 3100 | N16: =E16*1*30/0.2 -> 3000 | O16: =E16*1*31/0.2 -> 3100 | P16: =E16*1*30/0.2 -> 3000 | Q16: =E16*1*31/0.2 -> 3100 | R16: 33736 | S16: 东莞市长安镇乌沙社区兴发南路长安新区污水处理厂
A17: 15 | B17: 暂无对应的污泥干化项目 | C17: 东莞市东城东温塘污水处理厂 | E17: 5 | F17: 50 | G17: =F17*28*0.8 -> 1120 | H17: =E17*1*31/0.2 -> 775 | I17: =E17*1.2*30/0.2 -> 900 | J17: =E17*1.2*31/0.2 -> 930 | K17: =E17*1.2*30/0.2 -> 900 | L17: =E17*1.2*31/0.2 -> 930 | M17: =E17*1.2*31/0.2 -> 930 | N17: =E17*1.2*30/0.2 -> 900 | O17: =E17*1.2*31/0.2 -> 930 | P17: =E17*1.2*30/0.2 -> 900 | Q17: =E17*1.2*31/0.2 -> 930 | R17: 10145 | S17: 东莞市东城温塘社区东南角东城温塘污水处理厂
A18: 16 | C18: 东莞市石碣沙腰污水处理厂扩建工程 | E18: 10 | F18: 80 | G18: =F18*28*0.8 -> 1792 | H18: =E18*0.8*31/0.2 -> 1240 | I18: =E18*0.8*30/0.2 -> 1200 | J18: =E18*0.8*31/0.2 -> 1240 | K18: =E18*0.8*30/0.2 -> 1200 | L18: =E18*0.8*31/0.2 -> 1240 | M18: =E18*0.8*31/0.2 -> 1240 | N18: =E18*0.8*30/0.2 -> 1200 | O18: =E18*0.9*31/0.2 -> 1395 | P18: =E18*0.9*30/0.2 -> 1350 | Q18: =E18*0.9*31/0.2 -> 1395 | R18: 14492 | S18: 东莞市石碣镇沙腰村沿江西路2号
A19: 17 | C19: 东莞市万江污水处理厂二期 | E19: 5 | F19: 42 | G19: =E19*1*28/0.2 -> 700 | H19: =E19*1*31/0.2 -> 775 | I19: =E19*0.8*30/0.2 -> 600 | J19: =E19*0.8*31/0.2 -> 620 | K19: =E19*0.8*30/0.2 -> 600 | L19: =E19*0.8*31/0.2 -> 620 | M19: =E19*1*31/0.2 -> 775 | N19: =E19*1*30/0.2 -> 750 | O19: =E19*1*31/0.2 -> 775 | P19: =E19*1*30/0.2 -> 750 | Q19: =E19*1*31/0.2 -> 775 | R19: 7740 | S19: 东莞市万江区流涌尾社区白水涡
A20: 18 | C20: 中堂污水处理厂二期 | E20: 5 | G20: —— | H20: —— | I20: =E20*0.3*30/0.2 -> 225 | J20: =E20*0.5*31/0.2 -> 387.5 | K20: =E20*0.7*30/0.2 -> 525 | L20: =E20*0.7*31/0.2 -> 542.5 | M20: =E20*0.7*31/0.2 -> 542.5 | N20: =E20*0.7*30/0.2 -> 525 | O20: =E20*0.7*31/0.2 -> 542.5 | P20: =E20*0.7*30/0.2 -> 525 | Q20: =E20*0.7*31/0.2 -> 542.5 | R20: 4357.5 | S20: 广东省东莞市中堂镇中堂滨河东路68号之一101室
A21: 19 | C21: 寮步竹园污水处理厂二期 | E21: 5 | G21: —— | H21: —— | I21: =E21*0.5*30/0.2 -> 375 | J21: =E21*0.8*31/0.2 -> 620 | K21: =E21*0.8*30/0.2 -> 600 | L21: =E21*0.8*31/0.2 -> 620 | M21: =E21*1*31/0.2 -> 775 | N21: =E21*1*30/0.2 -> 750 | O21: =E21*1*31/0.2 -> 775 | P21: =E21*1*30/0.2 -> 750 | Q21: =E21*1*31/0.2 -> 775 | R21: 6040
A22: 20 | C22: 麻涌污水处理厂二期 | E22: 3 | G22: —— | H22: —— | I22: =E22*0.4*30/0.2 -> 180 | J22: =E22*0.6*31/0.2 -> 279 | K22: =E22*0.7*30/0.2 -> 315 | L22: =E22*0.7*31/0.2 -> 325.5 | M22: =E22*0.7*31/0.2 -> 325.5 | N22: =E22*0.7*30/0.2 -> 315 | O22: =E22*0.7*31/0.2 -> 325.5 | P22: =E22*0.7*30/0.2 -> 315 | Q22: =E22*0.7*31/0.2 -> 325.5 | R22: 2706 | S22: 广东省东莞市麻涌镇新沙公园南一路9号2号楼202室
A23: 21 | C23: 东城牛山污水处理厂二期 | E23: 3 | G23: —— | H23: —— | I23: =E23*0.2*30/0.2 -> 90 | J23: =E23*0.3*31/0.2 -> 139.5 | K23: =E23*0.7*30/0.2 -> 315 | L23: =E23*0.7*31/0.2 -> 325.5 | M23: =E23*0.7*31/0.2 -> 325.5 | N23: =E23*0.7*30/0.2 -> 315 | O23: =E23*0.8*31/0.2 -> 372 | P23: =E23*0.8*30/0.2 -> 360 | Q23: =E23*0.8*31/0.2 -> 372 | R23: 2614.5 | S23: 广东省东莞市东城街道象山路7号2栋101室
A24: 22 | C24: 望洪污水处理厂提标项目 | E24: 4 | G24: 50 | H24: 50 | I24: 50 | J24: 50 | K24: 50 | L24: 50 | M24: 50 | N24: 50 | O24: 50 | P24: 50 | Q24: 50 | R24: 550
A25: 23 | B25: 合计（单位：吨） | E25: =SUM(E3:E24) -> 168 | G25: =SUM(G3:G24) -> 20686 | H25: =SUM(H3:H24) -> 16597 | I25: =SUM(I3:I24) -> 19589 | J25: =SUM(J3:J24) -> 21649.5 | K25: =SUM(K3:K24) -> 21659 | L25: =SUM(L3:L24) -> 22717 | M25: =SUM(M3:M24) -> 23492 | N25: =SUM(N3:N24) -> 22904 | O25: =SUM(O3:O24) -> 23848.5 | P25: =SUM(P3:P24) -> 23249 | Q25: =SUM(Q3:Q24) -> 24003.5 | R25: =SUM(R3:R24) -> 240394.5
A26: 24 | B26: 日均产泥量（单位：吨） | G26: =G25/28 -> 739 | H26: =H25/31 -> 535 | I26: =I25/30 -> 653 | J26: =J25/31 -> 698 | K26: =K25/30 -> 722 | L26: =L25/31 -> 733 | M26: =M25/31 -> 758 | N26: 739 | O26: 769 | P26: 750 | Q26: 774 | R26: 7755
A27: 25 | B27: 需外运处置的日均产泥量（单位：吨） | G27: 739 | H27: 535 | I27: 453 | J27: 498 | K27: 522 | L27: 325 | M27: 340 | N27: 340 | O27: 167 | P27: 167 | Q27: 167
A28: 26 | B28: 需外运处置的总量（单位：吨） | G28: =G25 -> 20686 | H28: =H25 -> 16597 | I28: =SUM(I4:I24) -> 13589 | J28: =SUM(J4:J24) -> 15450 | K28: =SUM(K4:K24) -> 15659 | L28: 10079 | M28: 10544 | N28: 10205 | O28: 5165 | P28: 5000 | Q28: 5165 | R28: =SUM(G28:Q28) -> 128138
B30: 备注：1、市区污泥干化项目预计4月1日投产，市区厂4月1日开始不需外运处置；剩余需外运处置污泥450~520吨/天；2、塘厦林村污泥干化项目预计7月1日投产，对应的9个项目从7月1日开始开始不需外运处置；剩余需外运处置污泥300~350吨/天；3、厚街沙塘污泥干化项目预计10月1日投产，对应的3个项目从10月1日开始不需外运处置；剩余需外运处置的污泥约167吨/天；4、无对应的污泥干化8个项目需等3个污泥干化项目投运情况，是否存在富于，再进行调整处置方式。
